[Event "28th Bosnjaci Open 2024"]
[Site "Bosnjaci"]
[Date "2024.01.03"]
[Round "1.1"]
[White "Saric, Ante"]
[Black "Mesar, Darko"]
[Result "1-0"]
[ECO "B38"]
[WhiteElo "2508"]
[BlackElo "1851"]
[Annotator "TA"]
[PlyCount "85"]
[EventDate "2024.01.02"]
[EventType "swiss"]
[EventCountry "CRO"]
[SourceTitle "playchess.com"]
[Source "ChessBase"]
[SourceQuality "1"]
[TimeControl "5400+30"]

{[%evp 19,85,62,89,47,42,48,53,44,54,48,58,61,57,65,88,81,94,62,137,135,122,133,147,152,172,170,173,143,205,207,210,196,207,222,224,224,224,224,224,224,396,395,395,389,380,375,363,0,311,283,326,308,336,312,330,319,530,291,563,536,960,918,1802,1758,2083,1990,6014,3328]} 1. Nf3 {[%emt 0:00:04]} Nf6 {[%emt 0:00:16]} 2. c4 {[%emt 0:00:05]} g6 {[%emt 0:00:23]} 3. Nc3 {[%emt 0:00:16]} c5 {[%emt 0:00:50]} 4. e4 {[%emt 0:00:13]} d6 {[%emt 0:00:25]} 5. d4 {[%emt 0:00:05]} cxd4 {[%emt 0:01:00]} 6. Nxd4 {[%emt 0:00:08]} Bg7 {[%emt 0:00:14]} 7. Be2 {[%emt 0:00:10]} O-O {[%emt 0:00:25]} 8. O-O {[%emt 0:00:24]} Nc6 {[%emt 0:00:32]} 9. Be3 {[%emt 0:00:07]} Nxd4 {[%emt 0:01:37]} 10. Bxd4 {[%emt 0:00:06]} Be6 {[%emt 0:00:59]} 11. Re1 {[%emt 0:06:32] B38: Sicilian: Maroczy Bind with 5...Bg7 and 7...0-0.} a6 {[%emt 0:02:31]} 12. Bf1 {[%emt 0:01:01] [#]} Rb8 $146 {[%emt 0:01:53]} ({Predecessor:} 12... Rc8 13. Nd5 Nd7 14. Bxg7 Kxg7 15. Qd4+ f6 16. f4 Bf7 17. g3 e5 18. Qf2 Bxd5 19. cxd5 {½-½ Saric,A (2505)-Mrdja,M (2360) Zagreb op-A 2008 (1)}) 13. Qd2 {[%emt 0:08:03] White is slightly better.} Qa5 {[%emt 0:04:09]} 14. a3 {[%emt 0:02:01]} Rfd8 {[%emt 0:06:16]} 15. b4 {[%emt 0:01:23]} Qc7 {[%emt 0:00:57]} 16. Rac1 {[%emt 0:00:12]} b6 {[%emt 0:03:45]} (16... Bxc4 $2 17. Bxf6 Bxf6 18. Nd5 $18) 17. Nd5 {[%emt 0:01:01]} Qa7 {[%emt 0:03:27]} 18. Nxf6+ {[%emt 0:06:48]} exf6 {[%emt 0:01:28]} ({Black should try} 18... Bxf6 $14 19. Bxf6 exf6) 19. Qb2 $16 {[%emt 0:13:54] White is more active.} Qe7 {[%emt 0:03:18]} 20. a4 {[%emt 0:01:37]} Bd7 {[%emt 0:06:29]} 21. b5 {[%emt 0:02:11]} a5 {[%emt 0:02:48]} 22. f3 {[%emt 0:00:55]} Be6 {[%emt 0:03:42]} 23. g4 {[%emt 0:00:56]} g5 {[%emt 0:07:28]} (23... Bh6 $16) 24. Qf2 {[%emt 0:01:24]} Qc7 {[%emt 0:02:23]} 25. h4 {[%emt 0:00:08]} h6 {[%emt 0:01:36]} 26. Kg2 {[%emt 0:05:19]} Kf8 {[%emt 0:04:13]} 27. Bd3 {[%emt 0:02:31]} Ke7 {[%emt 0:04:28]} 28. hxg5 {[%emt 0:02:04]} hxg5 {[%emt 0:00:26]} 29. Rh1 {[%emt 0:00:05]} Rh8 $2 {[%emt 0:00:38] [#]} (29... Kd7 30. Rh7 Rg8) 30. Rxh8 $18 {[%emt 0:00:05]} Bxh8 {[%emt 0:01:35]} 31. Rh1 {[%emt 0:01:25]} Bg7 {[%emt 0:05:10]} 32. Rh7 {[%emt 0:07:04]} Bf8 {[%emt 0:01:57]} 33. Rh1 {[%emt 0:10:08]} Bg7 $1 {[%emt 0:01:01]} 34. Qb2 {[%emt 0:00:37] Rh7 is the strong threat.} ({But not} 34. Rh7 Kf8 35. Qe3 Bxc4 36. Bxb6 Rxb6 $18) 34... Qd8 {[%emt 0:04:00]} 35. Qc1 {[%emt 0:09:47]} Qc8 {[%emt 0:04:19]} 36. Qe3 {[%emt 0:01:15]} Qc7 {[%emt 0:01:06]} 37. Be2 {[%emt 0:02:09]} ({Resist} 37. Rh7 Bf8 38. Be2 Rb7) 37... Kf8 $2 {[%emt 0:05:13]} (37... Qd8 {was necessary.} 38. Bd3 Kd7) 38. Qc3 {[%emt 0:03:49] aiming for f4.} Qd8 $2 {[%emt 0:01:52] [#]} (38... Rc8 {was called for.} 39. Rh5 (39. Bxf6 Bxf6 40. Qxf6 Ke8 $18) 39... Qd8) 39. f4 $1 {[%emt 0:01:04][%cal Bf3f4,Bf4f5][%mdl 544] White is clearly winning.} Ke8 {[%emt 0:08:18]} (39... gxf4 40. g5) 40. Rh7 {[%emt 0:01:04] Prevents gxf4.} Bf8 {[%emt 0:01:56]} 41. Bxf6 {[%emt 0:00:16]} Qc8 {[%emt 0:00:40]} 42. f5 {[%emt 0:00:12]} Qb7 {[%emt 0:00:36]} 43. Bf3 {[%emt 0:00:49] Weighted Error Value: White=0.30/Black=0.40} 1-0

[Event "28th Bosnjaci Open 2024"]
[Site "Bosnjaci"]
[Date "2024.01.04"]
[Round "1.2"]
[White "Hajdinic, Ema"]
[Black "Zaja, Ivan"]
[Result "0-1"]
[ECO "C02"]
[WhiteElo "1840"]
[BlackElo "2419"]
[Annotator "RC"]
[PlyCount "84"]
[EventDate "2024.01.02"]
[EventType "swiss"]
[EventCountry "CRO"]
[SourceTitle "playchess.com"]
[Source "ChessBase"]
[SourceQuality "1"]
[TimeControl "5400+30"]

1. e4 {[%emt 0:00:02]} e6 {[%emt 0:00:14]} 2. d4 {[%emt 0:00:10]} d5 {[%emt 0:00:45]} 3. e5 {[%emt 0:00:19]} c5 {[%emt 0:00:07]} 4. c3 {[%emt 0:00:14]} Nc6 {[%emt 0:00:06]} 5. Nf3 {[%emt 0:00:12]} Bd7 {[%emt 0:00:07]} 6. Be2 {[%emt 0:01:33]} Rc8 {[%emt 0:01:18]} 7. a3 {[%emt 0:01:15]} Nh6 {[%emt 0:03:12]} 8. O-O {[%emt 0:09:10]} cxd4 {[%emt 0:02:14]} 9. cxd4 {[%emt 0:02:34]} f6 {[%emt 0:04:08]} 10. Bxh6 {[%emt 0:14:14]} gxh6 {[%emt 0:00:51]} 11. Nc3 {[%emt 0:03:35]} Bg7 {[%emt 0:02:21]} 12. Re1 {[%emt 0:07:52]} O-O {[%emt 0:01:27]} 13. Bd3 {[%emt 0:04:29]} Be8 {[%emt 0:07:18]} 14. Rc1 {[%emt 0:09:32]} Bh5 {[%emt 0:03:13]} 15. Be2 {[%emt 0:06:15]} Bxf3 {[%emt 0:01:59]} 16. Bxf3 {[%emt 0:00:05]} fxe5 {[%emt 0:00:09]} 17. dxe5 {[%emt 0:05:53]} Nxe5 {[%emt 0:00:12]} 18. Be2 {[%emt 0:00:30]} Qb6 {[%emt 0:03:12]} 19. Bg4 {[%emt 0:05:13]} Qxf2+ {[%emt 0:17:41]} 20. Kh1 {[%emt 0:00:05]} Nxg4 {[%emt 0:00:21]} 21. Qxg4 {[%emt 0:00:09]} Qxb2 {[%emt 0:00:26]} 22. Qxe6+ {[%emt 0:03:43]} Kh8 {[%emt 0:00:18]} 23. Ne2 {[%emt 0:00:15]} Rce8 {[%emt 0:02:18]} 24. Qg4 {[%emt 0:00:42]} Re4 {[%emt 0:00:58]} 25. Qh5 {[%emt 0:02:53]} Rfe8 {[%emt 0:01:00]} 26. Rc7 {[%emt 0:05:42]} Qe5 {[%emt 0:01:57]} 27. Qxe5 {[%emt 0:03:04]} Bxe5 {[%emt 0:01:03]} 28. Rc2 {[%emt 0:00:23]} Bd4 {[%emt 0:00:27]} 29. g3 {[%emt 0:00:48]} Bf2 {[%emt 0:00:16]} 30. Rf1 {[%emt 0:00:07]} Rxe2 {[%emt 0:00:36]} 31. Rxf2 {[%emt 0:00:07]} Rxf2 {[%emt 0:00:16]} 32. Rxf2 {[%emt 0:01:04]} Kg7 {[%emt 0:00:11]} 33. Rc2 {[%emt 0:01:00]} Kf6 {[%emt 0:02:48]} 34. Rc7 {[%emt 0:00:18]} Re7 {[%emt 0:00:09]} 35. Rc3 {[%emt 0:00:23]} d4 {[%emt 0:02:23]} 36. Rc1 {[%emt 0:00:02]} Ke5 {[%emt 0:00:51]} 37. Kg2 {[%emt 0:00:05]} Kd5 {[%emt 0:00:24]} 38. Kf2 {[%emt 0:00:10]} d3 {[%emt 0:01:24]} 39. Rc8 {[%emt 0:00:06]} Kd4 {[%emt 0:00:18]} 40. Kf1 {[%emt 0:00:23]} d2 {[%emt 0:00:14]} 41. Rd8+ {[%emt 0:00:15]} Kc3 {[%emt 0:00:30]} 42. Rc8+ {[%emt 0:00:05]} Kb3 {[%emt 0:00:11]} 0-1

[Event "28th Bosnjaci Open 2024"]
[Site "Bosnjaci"]
[Date "2024.01.04"]
[Round "1.3"]
[White "Fercec, Nenad"]
[Black "Benko, Bostjan"]
[Result "1-0"]
[ECO "B12"]
[WhiteElo "2410"]
[BlackElo "1835"]
[Annotator "RC"]
[PlyCount "39"]
[EventDate "2024.01.02"]
[EventType "swiss"]
[EventCountry "CRO"]
[SourceTitle "playchess.com"]
[Source "ChessBase"]
[SourceQuality "1"]
[TimeControl "5400+30"]

1. e4 {[%emt 0:00:05]} c6 {[%emt 0:00:12]} 2. d4 {[%emt 0:00:06]} d5 {[%emt 0:00:18]} 3. e5 {[%emt 0:00:07]} c5 {[%emt 0:00:34]} 4. Nf3 {[%emt 0:00:08]} Nc6 {[%emt 0:00:23]} 5. c4 {[%emt 0:00:05]} cxd4 {[%emt 0:00:42]} 6. Nxd4 {[%emt 0:00:19]} Nxd4 {[%emt 0:01:12]} 7. Qxd4 {[%emt 0:00:21]} Be6 {[%emt 0:03:59]} 8. cxd5 {[%emt 0:00:42]} Qxd5 {[%emt 0:00:10]} 9. Qxd5 {[%emt 0:00:10]} Bxd5 {[%emt 0:00:02]} 10. Nc3 {[%emt 0:00:30]} Bc6 {[%emt 0:04:13]} 11. Nb5 {[%emt 0:00:05]} Kd7 {[%emt 0:03:56]} 12. Be3 {[%emt 0:00:07]} Bxb5 {[%emt 0:00:35]} 13. Bxb5+ {[%emt 0:00:10]} Ke6 {[%emt 0:00:08]} 14. f4 {[%emt 0:00:16]} Kf5 {[%emt 0:00:39]} 15. Bd3+ {[%emt 0:00:16]} Kg4 {[%emt 0:01:46]} 16. Kf2 {[%emt 0:00:04]} e6 {[%emt 0:01:34]} 17. h3+ {[%emt 0:00:06]} Kh5 {[%emt 0:00:07]} 18. g4+ {[%emt 0:00:06]} Kh6 {[%emt 0:00:52]} 19. f5+ {[%emt 0:00:15]} g5 {[%emt 0:00:07]} 20. f6 {[%emt 0:00:07]} 1-0

[Event "28th Bosnjaci Open 2024"]
[Site "Bosnjaci"]
[Date "2024.01.03"]
[Round "1.4"]
[White "Bekcic, Martin"]
[Black "Kovacevic, Blazimir"]
[Result "0-1"]
[ECO "A47"]
[WhiteElo "1829"]
[BlackElo "2381"]
[Annotator "RC"]
[PlyCount "66"]
[EventDate "2024.01.02"]
[EventType "swiss"]
[EventCountry "CRO"]
[SourceTitle "playchess.com"]
[Source "ChessBase"]
[SourceQuality "1"]
[TimeControl "5400+30"]

1. d4 {[%emt 0:00:04]} Nf6 {[%emt 0:00:08]} 2. Bf4 {[%emt 0:00:19]} c5 {[%emt 0:01:05]} 3. e3 {[%emt 0:00:36]} g6 {[%emt 0:00:59]} 4. c3 {[%emt 0:00:41]} b6 {[%emt 0:00:23]} 5. Nf3 {[%emt 0:00:11]} Bb7 {[%emt 0:00:09]} 6. Bd3 {[%emt 0:00:41]} Bg7 {[%emt 0:00:16]} 7. h3 {[%emt 0:00:25]} d6 {[%emt 0:00:44]} 8. Bb5+ {[%emt 0:01:49]} Nbd7 {[%emt 0:00:20]} 9. O-O {[%emt 0:00:37]} a6 {[%emt 0:00:45]} 10. Bxd7+ {[%emt 0:00:10]} Nxd7 {[%emt 0:00:26]} 11. Nbd2 {[%emt 0:00:33]} O-O {[%emt 0:00:14]} 12. Re1 {[%emt 0:03:47]} e5 {[%emt 0:01:55]} 13. Bg3 {[%emt 0:03:08]} b5 {[%emt 0:02:48]} 14. dxe5 {[%emt 0:03:48]} dxe5 {[%emt 0:00:14]} 15. Qc2 {[%emt 0:01:16]} Qe7 {[%emt 0:01:40]} 16. e4 {[%emt 0:00:51]} c4 {[%emt 0:00:43]} 17. b3 {[%emt 0:01:04]} cxb3 {[%emt 0:00:23]} 18. axb3 {[%emt 0:02:58]} Rfc8 {[%emt 0:02:09]} 19. c4 {[%emt 0:06:58]} f6 {[%emt 0:02:45]} 20. Rad1 {[%emt 0:04:29]} Qe6 {[%emt 0:01:59]} 21. Re2 {[%emt 0:06:38]} a5 {[%emt 0:02:05]} 22. Qb1 {[%emt 0:00:50]} Ba6 {[%emt 0:01:33]} 23. Re3 {[%emt 0:07:00]} Bf8 {[%emt 0:07:46]} 24. cxb5 {[%emt 0:08:14]} Bxb5 {[%emt 0:00:11]} 25. Nc4 {[%emt 0:02:28]} a4 {[%emt 0:05:19]} 26. Rd5 {[%emt 0:04:37]} Bc5 {[%emt 0:05:49]} 27. Re1 {[%emt 0:09:28]} Bxc4 {[%emt 0:02:18]} 28. bxc4 {[%emt 0:00:21]} Nb6 {[%emt 0:00:21]} 29. Rdd1 {[%emt 0:01:35]} a3 {[%emt 0:00:43]} 30. Qa2 {[%emt 0:00:45]} Qxc4 {[%emt 0:00:56]} 31. Ra1 {[%emt 0:01:23]} Qxa2 {[%emt 0:58:54]} 32. Rxa2 {[%emt 0:00:05]} Na4 {[%emt 0:00:00]} 33. Rea1 {[%emt 0:03:07]} Nc3 {[%emt 0:00:00]} 0-1

[Event "28th Bosnjaci Open 2024"]
[Site "Bosnjaci"]
[Date "2024.01.04"]
[Round "1.5"]
[White "Jocev, Milan"]
[Black "Matozan, Zvonko"]
[Result "1-0"]
[ECO "E63"]
[WhiteElo "2376"]
[BlackElo "1824"]
[Annotator "RC"]
[PlyCount "73"]
[EventDate "2024.01.02"]
[EventType "swiss"]
[EventCountry "CRO"]
[SourceTitle "playchess.com"]
[Source "ChessBase"]
[SourceQuality "1"]
[TimeControl "5400+30"]

1. d4 {[%emt 0:01:23]} d6 {[%emt 0:00:18]} 2. Nf3 {[%emt 0:00:52]} g6 {[%emt 0:00:13]} 3. c4 {[%emt 0:00:14]} Bg7 {[%emt 1:31:29]} 4. g3 {[%emt 1:30:01]} Nc6 {[%emt 0:00:00]} 5. Bg2 {[%emt 0:00:00]} Bd7 {[%emt 0:00:00]} 6. Nc3 {[%emt 0:00:00]} Nf6 {[%emt 0:00:00]} 7. O-O {[%emt 0:00:00]} O-O {[%emt 0:00:00]} 8. b3 {[%emt 0:00:00]} a6 {[%emt 0:00:00]} 9. Bb2 {[%emt 0:00:00]} Rb8 {[%emt 0:00:00]} 10. d5 {[%emt 0:00:00]} Na7 {[%emt 0:00:00]} 11. a4 {[%emt 0:00:00]} e5 {[%emt 0:00:00]} 12. e4 {[%emt 0:00:00]} Nc8 {[%emt 0:00:00]} 13. a5 {[%emt 0:00:00]} Ne7 {[%emt 0:00:00]} 14. Ne1 {[%emt 0:00:00]} Ng4 {[%emt 0:05:30]} 15. Nd3 {[%emt 0:00:00]} f5 {[%emt 0:00:00]} 16. c5 {[%emt 0:00:00]} f4 {[%emt 0:00:00]} 17. Ba3 {[%emt 0:00:00]} Bc8 {[%emt 0:00:00]} 18. Nb2 {[%emt 0:00:00]} dxc5 {[%emt 0:00:00]} 19. Bxc5 {[%emt 0:00:00]} b6 {[%emt 0:00:00]} 20. axb6 {[%emt 0:00:00]} cxb6 {[%emt 0:00:00]} 21. Ba3 {[%emt 0:00:00]} b5 {[%emt 0:00:00]} 22. d6 {[%emt 0:00:00]} b4 {[%emt 0:00:00]} 23. dxe7 {[%emt 0:00:00]} Qxd1 {[%emt 0:00:00]} 24. exf8=Q+ {[%emt 0:10:00]} Bxf8 {[%emt 0:00:00]} 25. Rfxd1 {[%emt 0:00:00]} bxc3 {[%emt 0:00:00]} 26. Rd8 {[%emt 0:00:00]} cxb2 {[%emt 0:00:00]} 27. Rxf8+ {[%emt 0:00:00]} Kg7 {[%emt 0:00:00]} 28. Rb1 {[%emt 0:00:00]} Rxb3 {[%emt 0:00:00]} 29. Rxc8 {[%emt 0:00:00]} Rxa3 {[%emt 0:07:30]} 30. Rc2 {[%emt 0:03:00]} f3 {[%emt 0:00:00]} 31. Bf1 {[%emt 0:00:00]} Nf6 {[%emt 0:00:00]} 32. Rcxb2 {[%emt 0:00:00]} Nxe4 {[%emt 0:01:30]} 33. Re1 {[%emt 0:01:30]} Ra4 {[%emt 0:00:00]} 34. Rc2 {[%emt 0:00:00]} Ng5 {[%emt 0:00:00]} 35. Rxe5 {[%emt 0:00:00]} Kh6 {[%emt 0:00:00]} 36. h4 {[%emt 0:00:00]} Ne4 {[%emt 0:00:00]} 37. Rc4 {[%emt 0:00:00]} 1-0

[Event "28th Bosnjaci Open 2024"]
[Site "Bosnjaci"]
[Date "2024.01.03"]
[Round "1.6"]
[White "Milovic, Ilija"]
[Black "Zufic, Miroslav"]
[Result "1/2-1/2"]
[ECO "D36"]
[WhiteElo "1823"]
[BlackElo "2354"]
[Annotator "RC"]
[PlyCount "77"]
[EventDate "2024.01.02"]
[EventType "swiss"]
[EventCountry "CRO"]
[SourceTitle "playchess.com"]
[Source "ChessBase"]
[SourceQuality "1"]
[TimeControl "5400+30"]

1. d4 {[%emt 0:00:03]} Nf6 {[%emt 0:00:43]} 2. c4 {[%emt 0:00:13]} e6 {[%emt 0:00:17]} 3. Nc3 {[%emt 0:00:17]} d5 {[%emt 0:00:16]} 4. cxd5 {[%emt 0:00:30]} exd5 {[%emt 0:00:06]} 5. Bg5 {[%emt 0:00:14]} Be7 {[%emt 0:01:15]} 6. e3 {[%emt 0:00:12]} c6 {[%emt 0:00:20]} 7. Bd3 {[%emt 0:00:11]} O-O {[%emt 0:02:05]} 8. Qc2 {[%emt 0:00:29]} Nbd7 {[%emt 0:01:11]} 9. Nf3 {[%emt 0:01:13]} Re8 {[%emt 0:03:58]} 10. O-O {[%emt 0:00:45]} Nf8 {[%emt 0:02:18]} 11. Rab1 {[%emt 0:07:44]} Nh5 {[%emt 0:04:53]} 12. Bxe7 {[%emt 0:00:56]} Qxe7 {[%emt 0:00:15]} 13. b4 {[%emt 0:00:36]} a6 {[%emt 0:00:39]} 14. a4 {[%emt 0:02:43]} Nf6 {[%emt 0:04:38]} 15. b5 {[%emt 0:03:51]} axb5 {[%emt 0:01:07]} 16. axb5 {[%emt 0:00:14]} c5 {[%emt 0:01:15]} 17. dxc5 {[%emt 0:02:30]} Qxc5 {[%emt 0:02:28]} 18. Rfd1 {[%emt 0:03:20]} Bg4 {[%emt 0:07:41]} 19. Ne4 {[%emt 0:20:15]} Qe7 {[%emt 0:09:29]} 20. Nxf6+ {[%emt 0:01:09]} Qxf6 {[%emt 0:00:06]} 21. Be2 {[%emt 0:04:08]} Bf5 {[%emt 0:07:34]} 22. Bd3 {[%emt 0:00:12]} Be4 {[%emt 0:09:36]} 23. Nd4 {[%emt 0:07:38]} Rac8 {[%emt 0:06:51]} 24. Qa2 {[%emt 0:01:51]} Nd7 {[%emt 0:06:35]} 25. Bxe4 {[%emt 0:06:46]} dxe4 {[%emt 0:00:33]} 26. Rbc1 {[%emt 0:02:37]} Ne5 {[%emt 0:06:11]} 27. Rxc8 {[%emt 0:03:36]} Rxc8 {[%emt 0:00:02]} 28. Qd5 {[%emt 0:01:44]} Nd3 {[%emt 0:04:30]} 29. Qf5 {[%emt 0:06:00]} Qxf5 {[%emt 0:06:08]} 30. Nxf5 {[%emt 0:00:03]} Rc5 {[%emt 0:00:11]} 31. Nd6 {[%emt 0:03:01]} f5 {[%emt 0:01:17]} 32. b6 {[%emt 0:08:21]} Rc6 {[%emt 0:00:42]} 33. Nxf5 {[%emt 0:13:38]} Rxb6 {[%emt 0:00:14]} 34. Ng3 {[%emt 0:00:00]} Nc5 {[%emt 0:00:40]} 35. h3 {[%emt 0:00:00]} Kf7 {[%emt 0:01:29]} 36. Rd5 {[%emt 0:00:00]} Rc6 {[%emt 0:03:24]} 37. Re5 {[%emt 0:00:00]} b5 {[%emt 0:00:56]} 38. Nxe4 {[%emt 0:00:00]} Nxe4 {[%emt 0:00:06]} 39. Rxe4 {[%emt 0:00:00]} 1/2-1/2

[Event "28th Bosnjaci Open 2024"]
[Site "Bosnjaci"]
[Date "2024.01.04"]
[Round "1.7"]
[White "Culum, Sanjin"]
[Black "Vasilijevic, Vili"]
[Result "1-0"]
[ECO "E05"]
[WhiteElo "2349"]
[BlackElo "1821"]
[Annotator "RC"]
[PlyCount "71"]
[EventDate "2024.01.02"]
[EventType "swiss"]
[EventCountry "CRO"]
[SourceTitle "playchess.com"]
[Source "ChessBase"]
[SourceQuality "1"]
[TimeControl "5400+30"]

1. d4 {[%emt 0:00:04]} Nf6 {[%emt 0:00:05]} 2. Nf3 {[%emt 0:00:26]} d5 {[%emt 0:00:35]} 3. g3 {[%emt 0:00:33]} e6 {[%emt 0:01:05]} 4. Bg2 {[%emt 0:01:18]} Be7 {[%emt 0:01:00]} 5. O-O {[%emt 0:00:36]} O-O {[%emt 0:00:22]} 6. c4 {[%emt 0:00:21]} dxc4 {[%emt 0:01:41]} 7. Qc2 {[%emt 0:04:58]} a6 {[%emt 0:07:06]} 8. a4 {[%emt 0:00:11]} Nbd7 {[%emt 0:00:25]} 9. Nbd2 {[%emt 0:06:07]} c5 {[%emt 0:06:33]} 10. Nxc4 {[%emt 0:02:55]} Nd5 {[%emt 0:02:39]} 11. e4 {[%emt 0:11:59]} Nb4 {[%emt 0:02:53]} 12. Qe2 {[%emt 0:00:11]} cxd4 {[%emt 0:17:17]} 13. Nxd4 {[%emt 0:00:07]} Qc7 {[%emt 0:07:37]} 14. Rd1 {[%emt 0:06:17]} e5 {[%emt 0:04:09]} 15. Nf5 {[%emt 0:02:54]} Nc5 {[%emt 0:00:26]} 16. Nxe7+ {[%emt 0:01:47]} Qxe7 {[%emt 0:00:01]} 17. Be3 {[%emt 0:04:40]} Be6 {[%emt 0:06:43]} 18. Nb6 {[%emt 0:04:27]} Rad8 {[%emt 0:06:58]} 19. Nd5 {[%emt 0:00:18]} Bxd5 {[%emt 0:03:33]} 20. exd5 {[%emt 0:00:07]} Qd6 {[%emt 0:12:12]} 21. Qc4 {[%emt 0:02:00]} Nd7 {[%emt 0:02:03]} 22. Rac1 {[%emt 0:00:55]} a5 {[%emt 0:02:38]} 23. Qc7 {[%emt 0:01:03]} Qxc7 {[%emt 0:01:36]} 24. Rxc7 {[%emt 0:00:03]} b6 {[%emt 0:01:56]} 25. d6 {[%emt 0:07:49]} Na6 {[%emt 0:03:57]} 26. Rb7 {[%emt 0:00:17]} Nac5 {[%emt 0:00:41]} 27. Bxc5 {[%emt 0:00:07]} bxc5 {[%emt 0:01:35]} 28. Rb5 {[%emt 0:00:20]} f5 {[%emt 0:01:01]} 29. Bd5+ {[%emt 0:01:02]} Kh8 {[%emt 0:00:05]} 30. Be6 {[%emt 0:01:42]} Nb8 {[%emt 0:00:36]} 31. Rxc5 {[%emt 0:00:57]} Rf6 {[%emt 0:01:06]} 32. Bb3 {[%emt 0:01:18]} g6 {[%emt 0:01:45]} 33. Rxe5 {[%emt 0:04:16]} Nc6 {[%emt 0:00:09]} 34. Re6 {[%emt 0:00:52]} Rxe6 {[%emt 0:00:45]} 35. Bxe6 {[%emt 0:00:06]} Kg7 {[%emt 0:00:32]} 36. Bc4 {[%emt 0:01:49]} 1-0

[Event "28th Bosnjaci Open 2024"]
[Site "Bosnjaci"]
[Date "2024.01.04"]
[Round "1.8"]
[White "Bedic, Slavko"]
[Black "Muratovic, Efim"]
[Result "0-1"]
[ECO "D51"]
[WhiteElo "1817"]
[BlackElo "2345"]
[Annotator "RC"]
[PlyCount "68"]
[EventDate "2024.01.02"]
[EventType "swiss"]
[EventCountry "CRO"]
[SourceTitle "playchess.com"]
[Source "ChessBase"]
[SourceQuality "1"]
[TimeControl "5400+30"]

1. d4 {[%emt 0:00:04]} e6 {[%emt 0:00:55]} 2. c4 {[%emt 0:00:58]} d5 {[%emt 0:00:28]} 3. Nc3 {[%emt 0:01:43]} Nf6 {[%emt 0:00:10]} 4. Bg5 {[%emt 0:01:25]} Nbd7 {[%emt 0:02:00]} 5. e3 {[%emt 0:02:47]} c6 {[%emt 0:00:29]} 6. Bd3 {[%emt 0:05:45]} Qa5 {[%emt 0:02:18]} 7. Bxf6 {[%emt 0:00:55]} Nxf6 {[%emt 0:00:16]} 8. Nge2 {[%emt 0:06:22]} dxc4 {[%emt 0:05:45]} 9. Bxc4 {[%emt 0:02:35]} Bd6 {[%emt 0:02:32]} 10. h3 {[%emt 0:01:20]} O-O {[%emt 0:07:11]} 11. O-O {[%emt 0:02:30]} e5 {[%emt 0:00:56]} 12. d5 {[%emt 0:05:49]} Rd8 {[%emt 0:04:32]} 13. dxc6 {[%emt 0:22:42]} bxc6 {[%emt 0:00:14]} 14. Qc2 {[%emt 0:00:58]} Rb8 {[%emt 0:07:16]} 15. Ng3 {[%emt 0:05:25]} Nd5 {[%emt 0:05:03]} 16. Rfd1 {[%emt 0:12:39]} Be6 {[%emt 0:01:18]} 17. a3 {[%emt 0:06:01]} Nxe3 {[%emt 0:10:57]} 18. fxe3 {[%emt 0:01:15]} Bxc4 {[%emt 0:00:09]} 19. b4 {[%emt 0:00:19]} Qa6 {[%emt 0:02:34]} 20. Nce4 {[%emt 0:08:35]} Bf8 {[%emt 0:01:39]} 21. Rdc1 {[%emt 0:05:02]} Bd5 {[%emt 0:01:13]} 22. Ng5 {[%emt 0:01:10]} g6 {[%emt 0:07:30]} 23. e4 {[%emt 0:02:21]} Bh6 {[%emt 0:01:58]} 24. h4 {[%emt 0:00:59]} Qb6+ {[%emt 0:02:53]} 25. Kh2 {[%emt 0:00:55]} Bxg5 {[%emt 0:00:21]} 26. hxg5 {[%emt 0:00:17]} Be6 {[%emt 0:00:08]} 27. Qc5 {[%emt 0:01:48]} Qc7 {[%emt 0:02:25]} 28. Rd1 {[%emt 0:00:08]} a6 {[%emt 0:03:03]} 29. a4 {[%emt 0:00:14]} Rd4 {[%emt 0:02:36]} 30. Rxd4 {[%emt 0:00:57]} exd4 {[%emt 0:00:01]} 31. Qxd4 {[%emt 0:00:02]} Qf4 {[%emt 0:00:22]} 32. Rd1 {[%emt 0:01:19]} Qh4+ {[%emt 0:02:28]} 33. Kg1 {[%emt 0:00:13]} Qxg3 {[%emt 0:00:08]} 34. Qf6 {[%emt 0:00:15]} h6 {[%emt 0:01:36]} 0-1

[Event "28th Bosnjaci Open 2024"]
[Site "Bosnjaci"]
[Date "2024.01.03"]
[Round "1.9"]
[White "Plenkovic, Zdenko"]
[Black "Tomljenovic, Mile"]
[Result "*"]
[ECO "A60"]
[WhiteElo "2335"]
[BlackElo "1816"]
[Annotator "RC"]
[PlyCount "35"]
[EventDate "2024.01.02"]
[EventType "swiss"]
[EventCountry "CRO"]
[SourceTitle "playchess.com"]
[Source "ChessBase"]
[SourceQuality "1"]
[TimeControl "5400+30"]

1. d4 {[%emt 0:02:50]} c5 {[%emt 0:00:18]} 2. d5 {[%emt 0:00:06]} Nf6 {[%emt 0:00:24]} 3. c4 {[%emt 0:02:55]} e6 {[%emt 0:00:16]} 4. Nc3 {[%emt 0:00:05]} a6 {[%emt 0:00:20]} 5. e4 {[%emt 0:03:41]} exd5 {[%emt 0:00:40]} 6. e5 {[%emt 0:00:07]} Ne4 {[%emt 1:31:32]} 7. Nxd5 {[%emt 0:01:21]} Be7 {[%emt 1:31:08]} 8. Qg4 {[%emt 0:01:03]} Bg5 {[%emt 0:12:22]} 9. Qxe4 {[%emt 0:00:37]} Bxc1 {[%emt 0:00:15]} 10. Rxc1 {[%emt 0:00:13]} O-O {[%emt 1:14:23]} 11. Bd3 {[%emt 0:00:09]} g6 {[%emt 0:00:21]} 12. Nf6+ {[%emt 0:00:26]} Kg7 {[%emt 0:00:32]} 13. h4 {[%emt 0:00:14]} d6 {[%emt 0:00:54]} 14. h5 {[%emt 0:00:20]} Bf5 {[%emt 0:00:19]} 15. hxg6 {[%emt 0:00:20]} Bxe4 {[%emt 0:06:31]} 16. Rxh7+ {[%emt 0:00:06]} Kxg6 {[%emt 0:00:20]} 17. Bxe4+ {[%emt 0:00:05]} Kg5 {[%emt 0:00:49]} 18. Nh3# {[%emt 1:24:52]} *

[Event "28th Bosnjaci Open 2024"]
[Site "Bosnjaci"]
[Date "2024.01.03"]
[Round "1.10"]
[White "Rajkovic, Mario"]
[Black "Biti, Ozren"]
[Result "*"]
[ECO "C42"]
[WhiteElo "1815"]
[BlackElo "2308"]
[Annotator "RC"]
[PlyCount "20"]
[EventDate "2024.01.02"]
[EventType "swiss"]
[EventCountry "CRO"]
[SourceTitle "playchess.com"]
[Source "ChessBase"]
[SourceQuality "1"]
[TimeControl "5400+30"]

1. e4 {[%emt 1:31:00]} e5 {[%emt 0:01:51]} 2. Nf3 {[%emt 0:00:10]} Nf6 {[%emt 0:00:05]} 3. Nc3 {[%emt 0:01:52]} Bb4 {[%emt 0:00:05]} 4. Nxe5 {[%emt 0:04:11]} O-O {[%emt 0:00:38]} 5. Bc4 {[%emt 0:04:54]} Qe7 {[%emt 0:04:01]} 6. Nf3 {[%emt 0:07:59]} Bxc3 {[%emt 0:10:10]} 7. dxc3 {[%emt 0:04:37]} Qxe4+ {[%emt 0:00:10]} 8. Qe2 {[%emt 0:01:53]} Qc6 {[%emt 0:00:06]} 9. O-O {[%emt 0:04:16]} d5 {[%emt 0:02:27]} 10. Bb5 {[%emt 0:03:03]} Qd6 {[%emt 0:02:57]} *